Cogmind - Beta 16 @@@ ROGUE MODE // 2026.02.03 @ 01:50:18 Player: Megaknight51 Result: Destroyed by 73-JIG(x) with Makeshift Spear Performance ------------- Evolutions (2) 1000 Regions Visited (6) 1200 Robots Destroyed (65) 325 Value Destroyed (1856) 1856 Prototype IDs (9) 180 Alien Tech Used (0) 0 Bonus (989) 989 TOTAL SCORE: 5550 Bonus ------- Follower Combat Kills 228 Registered with UFD 300 Met Optimus in HQ 500 Friendly Fire -39 Cogmind --------- Core Integrity 0/550 Matter 300/300 Energy 100/100 System Corruption 0% Temperature Cool (20) Movement Core (1350) Ox26 Location -8/Scraptown Parts ------- > --- POWER (1) -------- (None) > --- PROPULSION (4) --- (None) > --- UTILITY (4) ------ Huge Storage Unit Visual Processing Unit Advanced Targeting Computer > --- WEAPON (2) ------- (None) > --- INVENTORY (25) --- Nuclear Core Nuclear Core Nuclear Core Light Treads Overtuned Titanium Leg Scrap Suit Makeshift Microdissipator Network High-capacity Matter Pod (200) Deep Structural Scanner Machine Analyzer Improved Sensor Array Improved Signal Interpreter Improved Terrain Scanner Hacking Suite Authchip [R/Combat] Drone Bay (2/2) Mapping Drone Bay (3/3) Heavy Assault Rifle Plasma Cutter Plasma Cutter Peak State ------------ > --- POWER ------------ Cooled Ion Engine > --- PROPULSION ------- Carbon-fiber Leg Titanium Leg Overtuned Titanium Leg Makeshift Leg > --- UTILITY ---------- Huge Storage Unit Visual Processing Unit Advanced Targeting Computer Improved Light Armor Plating > --- WEAPON ----------- Improved Light Cannon Improved Light Cannon > --- INVENTORY -------- Nuclear Core Nuclear Core Nuclear Core Light Treads Light Treads Light Treads Light Treads Scrap Suit High-capacity Matter Pod Deep Structural Scanner Machine Analyzer Improved Sensor Array Improved Signal Interpreter Improved Terrain Scanner Light Armor Plating Hacking Suite Authchip [R/Combat] Drone Bay Mapping Drone Bay Heavy Assault Rifle Plasma Cutter Plasma Cutter [Rating: 35] Favorites ----------- Power Cooled Ion Engine Engine Cooled Ion Engine Power Core Light Nuclear Core Propulsion Aluminum Leg Treads Light Treads Leg Aluminum Leg Utility Huge Storage Unit Device Seismic Detector Storage Huge Storage Unit Processor Visual Processing Unit Protection Improved Light Armor Plating Weapon Improved Light Cannon Energy Gun Particle Gun Ballistic Gun Assault Rifle Ballistic Cannon Improved Light Cannon Build | -11 -10 -9 -8 -8 -8 -8 ------- Run | Yrd Mat Mat Mat Sto Rec Scr Slots Evolved 4 | . . 2 2 . . . Power . | . . . . . . . Propulsion 2 | . . 2 . . . . Utility 2 | . . . 2 . . . Weapon . | . . . . . . . Parts Attached 62 | 8 7 15 1 20 . 11 Power 9 | 1 2 3 . 3 . . Engine 8 | 1 1 3 . 3 . . Core 1 | . 1 . . . . . Reactor . | . . . . . . . Propulsion 27 | 3 3 8 . 6 . 7 Treads 7 | 2 . . . 2 . 3 Leg 20 | 1 3 8 . 4 . 4 Wheel . | . . . . . . . Hover . | . . . . . . . Flight . | . . . . . . . Utility 13 | 2 1 . 1 7 . 2 Device 3 | 1 . . . 2 . . Storage 3 | 1 1 . . 1 . . Processor 3 | . . . 1 1 . 1 Hackware . | . . . . . . . Protection 4 | . . . . 3 . 1 Artifact . | . . . . . . . Weapon 13 | 2 1 4 . 4 . 2 Energy Gun 1 | . . 1 . . . . Energy Cannon . | . . . . . . . Ballistic Gun 6 | 2 1 1 . 2 . . Ballistic Cannon 6 | . . 2 . 2 . 2 Launcher . | . . . . . . . Special Weapon . | . . . . . . . Impact Weapon . | . . . . . . . Slashing Weapon . | . . . . . . . Piercing Weapon . | . . . . . . . Special Melee Weapon . | . . . . . . . Unidentified Prototypes 1 | . . . . 1 . . Corrupted Parts 2 | . . . . 2 . . System Corruption 13 | . . . . 13 . . Parts Lost 32 | . 4 6 . 8 . 14 Power 5 | . 2 1 . 1 . 1 Propulsion 15 | . 1 3 . 3 . 8 Utility 4 | . . . . 1 . 3 Weapon 8 | . 1 2 . 3 . 2 Highest Loss Streak 14 | . 2 2 . 6 . 14 To Critical Strikes . | . . . . . . . Average Backups 22 | . 12 23 22 24 25 23 Power 4 | . 2 8 8 5 3 3 Propulsion 3 | . 3 3 2 2 4 3 Utility 9 | . 4 5 5 10 13 11 Weapon 3 | . 2 4 5 2 3 2 Tool/Special . | . . . . . . . Unused Backups 36 | . . 4 . 12 . 20 Power 15 | . . . . 10 . 5 Propulsion 1 | . . . . 1 . . Utility 13 | . . . . . . 13 Weapon 5 | . . 4 . 1 . . Tool/Special 2 | . . . . . . 2 Average Slot Usage (%) 90 | . 98 99 89 97 100 80 Engine 9 | . 10 10 9 8 9 8 Leg 35 | . 26 43 36 34 36 35 Device 3 | . 14 11 9 2 . . Storage 9 | . 14 11 9 9 9 9 Processor 11 | . . . 8 13 18 18 Protection 6 | . . . . 10 9 8 Ballistic Gun 6 | . 28 11 . 4 9 . Ballistic Cannon 5 | . . 8 18 13 9 . Peak Build Rating 35 | 7 10 16 16 29 29 35 Average Rating 19 | 5 8 13 15 22 29 23 On Entrance 15 | . 7 9 15 16 29 29 Avg Prop Armor Cover (%) 6 | 7 7 . . 5 . 5 Naked Turns . | . . . . . . . Heaviest Build 102 | 13 89 96 94 102 99 99 Greatest Support 71 | 40 20 40 40 45 45 71 Greatest Overweight (x) 8 | . 8 3 2 4 2 3 Average Overweight (x) 1 | . 3 2 2 2 2 1 Largest Inventory Capacity 25 | 8 25 25 25 25 25 25 Average Capacity 24 | 6 23 25 25 25 25 25 Most Carried 25 | 2 19 25 23 25 25 25 Average Carried 22 | . 12 23 22 24 25 23 Final Capacity 25 | 8 25 25 25 25 25 25 Final Carried 25 | 2 19 23 22 25 25 21 Class Distribution -------------------- 80% | Scavenger-Mutant 10% | Commander-Mutant 8% | Mutant Dominant Class ---------------- Mutant | -10/Materials Scavenger-Mutant | -9/Materials Scavenger-Mutant | -8/Materials Scavenger-Mutant | -8/Storage Scavenger-Mutant | -8/Recycling Scavenger-Mutant | -8/Scraptown Resources | -11 -10 -9 -8 -8 -8 -8 ----------- Run | Yrd Mat Mat Mat Sto Rec Scr Matter Collected 2362 | 356 395 428 . 910 114 159 Remotely . | . . . . . . . Salvage Created 2321 | 138 443 782 . 863 . 95 Parts 151 | 7 32 62 . 45 . 5 Haulers Intercepted 8 | . 2 3 . 3 . . Recyclers Shooed 6 | . 1 2 . 3 . . Parts Field Recycled . | . . . . . . . Retrieved Matter . | . . . . . . . Parts Self-Destructed . | . . . . . . . Prevented . | . . . . . . . Parts Restored . | . . . . . . . Kills | -11 -10 -9 -8 -8 -8 -8 ------- Run | Yrd Mat Mat Mat Sto Rec Scr Combat Hostiles Destroyed 48 | . 10 22 . 14 . 2 Guns 28 | . 10 17 . 1 . . Cannons 20 | . . 5 . 13 . 2 Classes Destroyed 11 | 2 3 2 . 2 . 2 Worker 1 | . . . . 1 . . Tunneler 2 | 2 . . . . . . Hauler 8 | . 2 3 . 3 . . Recycler 4 | 1 . . . 3 . . Operator 2 | . . 1 . 1 . . Swarmer 13 | . 3 10 . . . . Grunt 20 | . 7 8 . 5 . . Duelist 1 | . . . . 1 . . Sentry 12 | . . 4 . 8 . . Guru 1 | . . . . . . 1 Scrapper 1 | . . . . . . 1 Best Kill Streak 6 | 1 3 6 . 3 . 1 Combat Bots Only 6 | . 3 6 . 2 . 1 Max Kills in Single Turn 2 | 1 1 2 . 1 . 1 Gunslinging 1 | . . 1 . . . . Exploded . | . . . . . . . Melee . | . . . . . . . Uniques/NPCs Destroyed . | . . . . . . . Combat | -11 -10 -9 -8 -8 -8 -8 -------- Run | Yrd Mat Mat Mat Sto Rec Scr Hostile Shots Fired 463 | . 65 136 . 98 . 164 Missed 107 | . 14 34 . 23 . 36 Hits 356 | . 51 102 . 75 . 128 Melee 7 | . . . . 3 . 4 Projectile 349 | . 51 102 . 72 . 124 Critical Strikes 21 | . 1 4 . 4 . 12 Damage Taken 5092 | . 623 1101 . 1231 . 2137 Core 893 | . 130 206 . 201 . 356 Absorbed by Shields . | . . . . . . . Core Remaining (%) 65 | 100 48 48 . . . . Volleys Fired 230 | 14 32 73 . 102 . 9 Largest 2 | 2 2 2 . 2 . 2 Hottest 85 | 40 40 85 . 66 . 66 Shots Fired 440 | 22 64 145 . 191 1 17 Gun 250 | 22 64 117 . 46 1 . Cannon 190 | . . 28 . 145 . 17 Launcher . | . . . . . . . Special . | . . . . . . . Kinetic 425 | 22 64 130 . 191 1 17 Thermal 15 | . . 15 . . . . Explosive . | . . . . . . . Electromagnetic . | . . . . . . . Robot Hit Streak 15 | 4 15 12 . 11 . 3 Robot Miss Streak 5 | 2 3 5 . 5 1 4 Penetration Max . | . . . . . . . Secondary Targets 4 | . 1 3 . . . . Max Gunslinging Chain 1 | . 1 1 . . . . Shots Hit Robots 258 | 14 47 99 . 91 . 7 Core Hits 107 | 4 26 41 . 31 . 5 Critical Kills 1 | . . 1 . . . . Critical Parts Destroyed . | . . . . . . . Critical Strikes 5 | . . 3 . 2 . . Burn 1 | . . 1 . . . . Destroy 1 | . . 1 . . . . Blast 3 | . . 1 . 2 . . Melee Attacks . | . . . . . . . Impact . | . . . . . . . Slashing . | . . . . . . . Piercing . | . . . . . . . Sneak Attacks . | . . . . . . . Combat Hostiles . | . . . . . . . Follow-up Attacks . | . . . . . . . Damage Inflicted 4184 | 178 535 1240 5 1993 . 233 Guns 1870 | 178 530 880 . 282 . . Cannons 2222 | . . 327 . 1668 . 227 Explosions . | . . . . . . . Melee . | . . . . . . . Ramming 92 | . 5 33 5 43 . 6 Kinetic 3908 | 178 530 1023 . 1950 . 227 Thermal 184 | . . 184 . . . . Explosive . | . . . . . . . Electromagnetic . | . . . . . . . Impact . | . . . . . . . Slashing . | . . . . . . . Piercing . | . . . . . . . Highest Corruption 14 | . 4 1 . 14 14 14 Average Corruption 8 | . 3 1 . 7 14 14 Corruption Purged . | . . . . . . . Corruption Blocked . | . . . . . . . Effects 77 | . . . . 60 15 2 Message Errors 15 | . . . . 14 1 . Matter Fused 17 | . . . . 14 2 1 Heat Flow Errors 6 | . . . . 2 3 1 Energy Discharges 14 | . . . . 10 4 . Parts Fused 2 | . . . . 2 . . Data Loss (minor) 13 | . . . . 9 4 . Data Loss (major) 4 | . . . . 4 . . Misfires 5 | . . . . 4 1 . Weapon Failures 1 | . . . . 1 . . Overload Shots . | . . . . . . . Overflow Damage 3 | . . 3 . . . . Projectiles 3 | . . 3 . . . . Explosions . | . . . . . . . Melee . | . . . . . . . Knockbacks 29 | . . 4 . 24 . 1 Impact 2 | . . . . 2 . . Kinetic 27 | . . 4 . 22 . 1 Secondary . | . . . . . . . Self-Inflicted Damage 1 | . . . . . . 1 Shots . | . . . . . . . Rammed 2 | . . . . . . 2 Targets Rammed 19 | . 2 8 1 6 . 2 Kicked 17 | . 2 8 1 6 . . Crushed . | . . . . . . . Highest Temperature 254 | . 20 206 . 223 254 213 Average Temperature 49 | . 6 53 . 45 101 62 Received Heat Transfer 2539 | . 303 357 . 621 . 1258 Siege Activations . | . . . . . . . Martial Activations . | . . . . . . . Shielding Activations . | . . . . . . . Robots Disrupted . | . . . . . . . Combat Hostiles . | . . . . . . . Robots Corrupted . | . . . . . . . Combat Hostiles . | . . . . . . . Parts Fried . | . . . . . . . Impact Corruptions . | . . . . . . . Robots Melted . | . . . . . . . Combat Hostiles . | . . . . . . . Parts Melted . | . . . . . . . Heat Transferred 518 | . . 518 . . . . Parts Sabotaged . | . . . . . . . Parts Stolen . | . . . . . . . Parts Stripped . | . . . . . . . Power Chain Reactions . | . . . . . . . Alert | -11 -10 -9 -8 -8 -8 -8 ------- Run | Yrd Mat Mat Mat Sto Rec Scr Maximum Alert Level 1 | . . 1 . 1 . . Low Security (%) 93 | 100 100 89 100 91 100 . Level 1 6 | . . 10 . 8 . . Level 2 . | . . . . . . . Level 3 . | . . . . . . . Level 4 . | . . . . . . . Level 5 . | . . . . . . . High Security . | . . . . . . . Max Security . | . . . . . . . Peak Influence 330 | 5 91 245 52 330 116 . Initial 116 | . . . 52 . 116 . Average 66 | . 25 117 6 73 36 . Influence Increases 1912 | 15 294 612 15 976 . . Destroy 0b10 Robot/C 1040 | . 200 440 . 400 . . Destroy 0b10 Robot/NC 85 | 15 10 20 . 40 . . Destroy Leader 296 | . 44 116 . 136 . . Allied During Kill 70 | . . . . 70 . . Trap Triggered on 0b10 10 | . 10 . . . . . Successful Hack 46 | . . . . 46 . . Disable Machine 90 | . . 15 . 75 . . Anti-Garrison Action 150 | . . . . 150 . . Destroy Structure 20 | . . 6 . 14 . . Lose Combat Pursuer 105 | . 30 15 15 45 . . Influence Decreases 1912 | 15 294 487 140 677 299 . Entered New Map 256 | . . . 73 . 183 . Time Decay 1246 | 15 264 437 67 367 96 . Lost Part 150 | . 30 50 . 70 . . Lost Ally 120 | . . . . 100 20 . Purge Threat 140 | . . . . 140 . . Squads Dispatched 13 | . 1 2 . 10 . . Investigation 4 | . 1 1 . 2 . . Extermination . | . . . . . . . Reinforcement 3 | . . 1 . 2 . . Assault 2 | . . . . 2 . . Garrison 4 | . . . . 4 . . Intercept . | . . . . . . . Searches Triggered . | . . . . . . . Construction Impeded 1 | . . . . 1 . . Haulers Reinforced . | . . . . . . . Active Scanning Responses . | . . . . . . . Cargo Convoy Interrupts . | . . . . . . . Stealth | -11 -10 -9 -8 -8 -8 -8 --------- Run | Yrd Mat Mat Mat Sto Rec Scr Distress Signals 11 | . . 5 2 4 . . Communications Jammed . | . . . . . . . Distress Signals . | . . . . . . . Times Spotted 124 | . 16 40 2 40 . 26 Peak Tracking Total 11 | . 3 8 2 6 . 11 Tactical Retreats 7 | . 2 1 1 3 . . Traps | -11 -10 -9 -8 -8 -8 -8 ------- Run | Yrd Mat Mat Mat Sto Rec Scr Traps Triggered 6 | . 2 1 . 3 . . Indirectly . | . . . . . . . Trap Hack Attempts . | . . . . . . . Triggered . | . . . . . . . Disarmed . | . . . . . . . Reprogrammed 6 | . 6 . . . . . Reused 1 | . 1 . . . . . Traps Extracted . | . . . . . . . Installed . | . . . . . . . Triggered 1 | . 1 . . . . . Machines | -11 -10 -9 -8 -8 -8 -8 ---------- Run | Yrd Mat Mat Mat Sto Rec Scr Machines Disabled 7 | . . 1 . 6 . . Max in Single Turn 1 | . . 1 . 1 . . Garrison Access 1 | . . . . 1 . . Machines Repaired . | . . . . . . . Machines Dismantled . | . . . . . . . Machines Sabotaged . | . . . . . . . Overloaded Fab Kills . | . . . . . . . Hacking | -11 -10 -9 -8 -8 -8 -8 --------- Run | Yrd Mat Mat Mat Sto Rec Scr Machines Accessed 25 | . 3 2 . 10 3 7 Terminals 16 | . 3 2 . 10 1 . Fabricators . | . . . . . . . Repair Stations . | . . . . . . . Recycling Units . | . . . . . . . Scanalyzers . | . . . . . . . Garrison Access . | . . . . . . . Total Hacks 111 | . 10 7 . 27 26 41 Successful 78 | . 2 . . 10 25 41 Failed 33 | . 8 7 . 17 1 . Catastrophic 4 | . 1 1 . 1 1 . Database Lockouts . | . . . . . . . Manual 25 | . 2 . . 21 1 1 Terminals 45 | . 10 7 . 27 1 . Fabricators . | . . . . . . . Repair Stations . | . . . . . . . Recycling Units . | . . . . . . . Scanalyzers . | . . . . . . . Garrison Access . | . . . . . . . Terminal Hacks 78 | . 2 . . 10 25 41 Record 65 | . 1 . . . 24 40 Part Schematic 2 | . . . . 2 . . Robot Analysis 3 | . . . . 3 . . Prototype ID Bank 1 | . . . . 1 . . Open Door 2 | . . . . 2 . . Unreport Threat 1 | . . . . 1 . . Reprogram Traps 1 | . 1 . . . . . Registered Components 1 | . . . . 1 . . Proto ID Catalog 1 | . . . . . . 1 Release Object 1 | . . . . . 1 . Fabricator Hacks . | . . . . . . . Repair Station Hacks . | . . . . . . . Recycling Unit Hacks . | . . . . . . . Scanalyzer . | . . . . . . . Garrison Access Hacks . | . . . . . . . Unauthorized Hacks . | . . . . . . . Terminals . | . . . . . . . Fabricators . | . . . . . . . Repair Stations . | . . . . . . . Recycling Units . | . . . . . . . Scanalyzers . | . . . . . . . Garrison Access . | . . . . . . . Data Cores Recovered 1 | . . . . 1 . . Used . | . . . . . . . Hacking Detections 15 | . 3 2 . 9 1 . Full Trace Events 4 | . 1 2 . 1 . . Feedback Events . | . . . . . . . Feedback Blocked . | . . . . . . . Robot Schematics Acquired . | . . . . . . . Robots Built . | . . . . . . . Authchips . | . . . . . . . Time . | . . . . . . . Total Robot Build Rating . | . . . . . . . Part Schematics Acquired 2 | . . . . 2 . . Parts Built . | . . . . . . . Authchips . | . . . . . . . Time . | . . . . . . . Total Part Build Rating . | . . . . . . . Part Studies Acquired . | . . . . . . . Parts Repaired . | . . . . . . . Time . | . . . . . . . Parts Recycled . | . . . . . . . Recycled Matter . | . . . . . . . Retrieved Matter . | . . . . . . . Retrieved Components . | . . . . . . . Parts Scanalyzed . | . . . . . . . Part Schematics Acquired . | . . . . . . . Parts Damaged . | . . . . . . . Bothacking | -11 -10 -9 -8 -8 -8 -8 ------------ Run | Yrd Mat Mat Mat Sto Rec Scr Used RIF Installer . | . . . . . . . Robots Hacked . | . . . . . . . Non-combat . | . . . . . . . Combat . | . . . . . . . Robot Hacks Applied . | . . . . . . . Relay Couplers Released 4 | . . . . 4 . . Machine Destruction 4 | . . . . 4 . . Fabnet Peak Effective % . | . . . . . . . Robots Rewired . | . . . . . . . Allies Hacked . | . . . . . . . Hacks Repelled . | . . . . . . . Allies | -11 -10 -9 -8 -8 -8 -8 -------- Run | Yrd Mat Mat Mat Sto Rec Scr Total Allies 10 | . . . . 10 . . Largest Group 10 | . . . . 10 5 4 Highest-Rated Group 173 | . . . . 173 80 64 Highest-Rated Ally 29 | . . . . 29 16 16 Total Orders 5 | . . . . 3 . 2 STAY 1 | . . . . . . 1 ROAM 1 | . . . . 1 . . FOLLOW 1 | . . . . . . 1 EXPLORE 2 | . . . . 2 . . Ally Attacks 66 | . . . . 42 . 24 Total Damage 777 | . . . . 520 . 257 Kills 9 | . . . . 6 . 3 Allies Corrupted . | . . . . . . . Allies Melted 3 | . . . . . 1 2 Intel | -11 -10 -9 -8 -8 -8 -8 ------- Run | Yrd Mat Mat Mat Sto Rec Scr Active Infowar (turns) 12093 | 82 1209 1598 548 3446 324 4886 Optics 9193 | . . . 537 3446 324 4886 Seismic 3835 | 82 1209 1598 548 398 . . Robot Analysis Total 3 | . . . . 3 . . Derelict Logs Recovered . | . . . . . . . Drone Launches 2 | . . . . 2 . . Drone Recoveries 1 | . . . . 1 . . Exploration | -11 -10 -9 -8 -8 -8 -8 ------------- Run | Yrd Mat Mat Mat Sto Rec Scr Turns Passed 12228 | 217 1209 1598 548 3446 324 4886 Spaces Moved 4112 | 107 300 467 67 1043 113 2015 Core 2 | 2 . . . . . . Treads 161 | 98 49 . . 1 . 13 Legs 3949 | 7 251 467 67 1042 113 2002 Wheels . | . . . . . . . Hover . | . . . . . . . Flight . | . . . . . . . Fastest Speed 50 | 50 120 260 260 260 260 190 Average Speed 254 | 155 344 260 260 265 260 238 Slowest Speed 680 | 160 680 330 260 480 260 400 Overloaded Moves . | . . . . . . . Propulsion Burnouts . | . . . . . . . Robots Hopped . | . . . . . . . Potential Cave-ins . | . . . . . . . Cave-ins Triggered . | . . . . . . . Exploration Rate (%) 40 | 7 37 37 5 94 12 92 Regions Visited 6 Branch Regions 3 Pre-discovered Areas . | . . . . . . . Known Exits Taken . | . . . . . . . Unknown Exits Taken 6 | 1 1 1 1 1 1 . Scrap Searched 3 | . . . . . . 3 Spaces Dug 4 | . . . . 4 . . Terrain Destroyed 12 | . . 3 . 9 . . Melee . | . . . . . . . Projectile 12 | . . 3 . 9 . . AOE . | . . . . . . . Terrain Rammed . | . . . . . . . Walls Destroyed . | . . . . . . . Machines Disabled . | . . . . . . . Actions | -11 -10 -9 -8 -8 -8 -8 --------- Run | Yrd Mat Mat Mat Sto Rec Scr Total 5455 | 131 412 709 440 1543 144 2076 Wait 913 | . 53 121 372 317 32 18 Move 4106 | 106 299 466 66 1042 112 2015 Hop . | . . . . . . . Pick Up 67 | 2 19 14 . 24 . 8 Fast Attach 11 | 7 1 1 . 1 . 1 Attach 29 | . 3 7 1 11 . 7 Detach 5 | . . . . 3 . 2 Swap 31 | 2 3 9 . 12 . 5 Drop 39 | . . 10 . 20 . 9 Fire 230 | 14 32 73 . 102 . 9 Melee . | . . . . . . . Ram 1 | . . . . . . 1 Kick 17 | . 2 8 1 6 . . Crush 1 | . . . . . . 1 Escape Stasis 5 | . . . . 5 . . Rewire . | . . . . . . . Trap . | . . . . . . . Miscellaneous . | . . . . . . . Route ------- -11/Scrapyard -10/Materials -9/Materials (discovered 2 exits: [*Mat] / [*Min]) -8/Materials -8/Storage (discovered 2 exits: [*Fac] / *Rec) -8/Recycling -8/Scraptown (discovered 2 exits: [*Fac x2]) History --------- Turn | Location | Event 54 | -11/Scrapyard | Discovered new exit (range 13) 218 | -11/Scrapyard | Entered Materials 319 | -10/Materials | Build established: Mutant 882 | -10/Materials | Core integrity fell below 50% 1211 | -10/Materials | Build established: Scavenger-Mutant 1399 | -10/Materials | Discovered new exit (range 9) 1427 | -10/Materials | Entered another Materials area 1427 | -9/Materials | Evolved 2 slots: Propulsion x2 2626 | -9/Materials | Discovered new exit (range 12) 2823 | -9/Materials | Discovered new exit (range 12) 2968 | -9/Materials | Core integrity fell below 50% 3025 | -9/Materials | Entered another Materials area 3025 | -8/Materials | Evolved 2 slots: Utility x2 3025 | -8/Materials | Discovered new exit (range 8) 3573 | -8/Materials | Entered Storage 4023 | -8/Storage | Lost 6 parts (1p2n1u2w) 5428 | -8/Storage | Met 01-MTF 5471 | -8/Storage | Garrison activated, responded to threat 5747 | -8/Storage | Discovered new exit (range 3) 6420 | -8/Storage | System corruption reached 10% 6622 | -8/Storage | Assisted by bots powering up and referring to "LRC-V3" 6653 | -8/Storage | Garrison activated, responded to threat 6735 | -8/Storage | Allied Derelicts emerged from ambush trap array 6785 | -8/Storage | Lost 5 allies 6972 | -8/Storage | Discovered new exit (range 6) 7019 | -8/Storage | Entered Recycling 7019 | -8/Recycling | Accompanied by 6 allies (01-MTF) 7020 | -8/Recycling | Met a Zionite searching for Scraptown 7092 | -8/Recycling | Scanned before Scraplab entrance 7186 | -8/Recycling | Entered Scraplab 7233 | -8/Recycling | Discovered new exit (range 3) 7343 | -8/Recycling | Entered Scraptown 7343 | -8/Scraptown | Accompanied by 4 allies 7384 | -8/Scraptown | System corruption cleaned by C-Scrubber 8144 | -8/Scraptown | Discovered new exit (range 5) 8510 | -8/Scraptown | Visited Red Mages 8666 | -8/Scraptown | Visited Junk Repository 9493 | -8/Scraptown | Visited UFD Registry 9558 | -8/Scraptown | Visited CPS Storage 9576 | -8/Scraptown | Visited Comm Corps 9776 | -8/Scraptown | Visited TADAMA 9878 | -8/Scraptown | Registered with UFD as "Boltlever" 9948 | -8/Scraptown | Visited Scrap Suit Storage 9982 | -8/Scraptown | Found Scrap Suit 10097 | -8/Scraptown | Visited Abandonware Association 10157 | -8/Scraptown | Learned abandonware demo "ERRANTS.EXE" 10227 | -8/Scraptown | Visited Science Guys 10739 | -8/Scraptown | Visited Science Testing Area 10784 | -8/Scraptown | Visited Derelict Rescue Squad 10849 | -8/Scraptown | Visited DA-N13 Charitable Foundation 10888 | -8/Scraptown | Found DCF Scrap (27 items) 10996 | -8/Scraptown | Visited Cartography Club 11212 | -8/Scraptown | Build established: Commander-Mutant 11317 | -8/Scraptown | Discovered new exit (range 5) 11481 | -8/Scraptown | Visited Botcube Research 11529 | -8/Scraptown | Visited Scrapoid Pod Storage 11569 | -8/Scraptown | Visited Research Penetration Think Tank 11794 | -8/Scraptown | Met Optimus 11794 | -8/Scraptown | Accepted into 0bPrime 12098 | -8/Scraptown | Civil war broke out across Scraptown 12166 | -8/Scraptown | Found Deep Structural Scanner 12191 | -8/Scraptown | Core integrity fell below 50% 12202 | -8/Scraptown | Lost 20 allies 12226 | -8/Scraptown | Core integrity fell below 20% 12229 | -8/Scraptown | Destroyed by 73-JIG(x) with Makeshift Spear Last Messages --------------- 12212_ Acquired Ovr. Titanium Leg. 12215_ Penetrated by Bolt. 12215_ Lgt. Treads destroyed. 12215_ Penetrated by Bolt. 12216_ Acquired Mak. Microdissipator Network. 12217_ Penetrated by Bolt. 12219_ Acquired 2 matter. 12220_ Penetrated by Bolt. 12220_ Bolt penetrates Wall. 12220_ GU-FWL(h) suffers critical hit (Destroy). 12221_ Lgt. Treads destroyed. 12222_ Critical hit (Burn: +50). 12223_ Bolt penetrates Wall. 12224_ Bolt penetrates NU-TQX(E). 12225_ Bolt penetrates Wall. 12225_ Lgt. Treads destroyed. 12226_ Slammed into 73-JIG(x). 12228_ Wall collapses. 12228_ Penetrated by Bolt. [Achievement: This Is Interesting...] Map ----- +----------------------------------------------------+ | | | | | | | | | | | ?????????????????????????????????????????????????? | | ?????????????????????????????????????????????????? | | ?????????????????????????????????????????????????? | | ?????????????????????????????????????????????????? | | ?????????????????????????????????????????????????? | | ?????????????????????????????????????????????????? | | ?????????????????????????????????????????????????? | | ?????????????????????????????????????????????????? | | ?????????????????????????????????????????????????? | | ?????????????????????????????????????????????????? | | ?????????????????????????????????????????????????? | | ????????????????????????????????#####????????????? | | ????????????????????????????????#"""#????????????? | | ?###################???####?????#" "#????????????? | | ?"""##"""##""|##"""#??##[!##????# < #????????????? | | #"" ##"" ##"" ##!!";###!%=%###### ##???????????? | | #"" *!!/%%* #???????????? | | # !j=M= #???????????? | | ######################;[g*h###########???????????? | | ??????????????????????##x=;#?????????????????????? | | ???????????????????????# @#??????????????????????? | | ???????????????????????# #??????????###?????????? | | ???????????????????????#% #???????#### #?????????? | | ???????????????????????#!%#???????# # #?????????? | | #??????????????????????# %#????##?## #!#?????????? | | #?????????????????????## h#??? ### #?????????? | | ##########??#######"###; #?? ??#X#### #?????????? | | # """""""#??#"""" ""# *## #??### ## #?????????? | | #" ! "#??#""" ""#!%! #??# #?????????? | | #" "#??#""& " #[=#######%######?????????? | | #" "#??#""" "#!!!!!! /=! #?????????? | | #" "#??# "!!!#[ %! #?????????? | | ###### ###??###### #####=%##=###########?????????? | | ###### ########### #####=/[=%"#??????????????????? | | """""" """""""" "" "" =E%%!* #########??????????? | | !% *=%[!%=!##* !*= #??????????? | | %! =%!/=*= ##=!=%=*#??????????? | | =!!=! ##=[|[/*#??????????? | | !* "#==[ ###??????????? | | * !*% !=!!###??????????? | | """"""""""""""""""" "" %=*=% "# !]*=!#??????????? | | """"""""""""""""""""""""*%!!!!"# %! #??????????? | | #### ################" [ ## [ #??????????? | | ##????????# == ##############?????? | | X"#????????#" =%"## """"""""#?????? | +----------------------------------------------------+ Best States ------------- Heat Dissipation 31 Energy Generation 14 Energy Capacity 280 Matter Stores 300 Matter Capacity 300 Sight Range 18 Terrain Scan Density 10 Armor Coverage 300 Evasion (%) 55 Targeting Accuracy 8 Recoil Reduction 3 Authchip Count 2 Item Schematics ----------------- Hacking Suite | -8/Storage | Hacked Imp. Sensor Array | -8/Storage | Hacked Robot Schematics ------------------ None Fabricated ------------ Nothing Repaired ---------- Nothing Studied --------- None Alien Tech Used ----------------- None Achievements -------------- Frienemies Link The Feds Plot Armor This Is Interesting... You May Approach The Wall \\IAMDERELICT Challenges ------------ None Game ------ Seed ScrapGrenadeAccelerator Manual? 0 Play Time 01:10:35 Cumulative 45.0 hours Start 2026.02.03 @ 00:34:13 End 2026.02.03 @ 01:50:18 Sessions 1 Manual Loads 0 Difficulty Rogue Special Mode None Game No. 88 Rogue 88 Adventurer 0 Explorer 0 Win Type - Total 0 Types 0/0/0/0/0/0/0/0/0/0 Lore% 26 Gallery% 26 Achievement% 23 Wizard Run 0 Options --------- Layout 0 ASCII 0 Keyboard 1 Movement Arrows Keybinds 0 Fullscreen 1 Font 18/Smallcaps Map View 38x25 Zoom Use 88% Tactical HUD 1 Map Filters NONE Filters NONE Steam 1 RUN: 62653b34-5040-4b34-9677-365c84316647